Cogmind - Beta 16 @@@ ROGUE MODE // 2025.10.25 @ 22:54:06 Player: Andru7428 Result: Destroyed by G-73 Enforcer with Heavy Laser Performance ------------- Evolutions (5) 2500 Regions Visited (18) 3600 Robots Destroyed (180) 900 Value Destroyed (8136) 8136 Prototype IDs (44) 880 Alien Tech Used (0) 0 Bonus (2283) 2283 TOTAL SCORE: 18299 Bonus ------- High Alert Combat Kills 91 Follower Combat Kills 815 Network Hubs Disabled 200 Met Data Miner 300 Met Warlord at Base 500 MAIN.C Attacked Warlord 500 Warlord Defense Kills 240 Friendly Fire -363 Cogmind --------- Core Integrity 0/1000 Matter 300/300 Energy 303/375 System Corruption 3% Temperature Cool (6) Movement Treading (320) Ox2 Location -4/Proximity Caves Parts ------- > --- POWER (2+1) ------ Light Fission Core Neutrino Core > --- PROPULSION (4) --- Improved Treads Flexi-carbon Leg Flexi-carbon Leg Enhanced Biometal Leg > --- UTILITY (7) ------ Advanced Heat Sink Large Storage Unit Improved Sensor Array (fused) Advanced Signal Interpreter Experimental Targeting Computer Layered Light Armor Plating Advanced Shield Generator > --- WEAPON (4) ------- Powered Cannon > --- INVENTORY (15) --- Light Fission Core Light Antimatter Reactor Improved Treads Carbon-fiber Leg Energy Well (350) Minesniffer Drone Bay (10/10) Dimensional Node Initializer Field Laser Mass Driver Long-range Missile Launcher Molecular Deconstructor Impact Mace Makeshift Sword Phasing Sabre Peak State ------------ > --- POWER ------------ Fission Core Light Fission Core > --- PROPULSION ------- Carbon-fiber Leg Flexi-carbon Leg Flexi-carbon Leg Enhanced Biometal Leg > --- UTILITY ---------- Large Storage Unit Improved Sensor Array Advanced Signal Interpreter Precision Energy Filter Layered Medium Armor Plating Centrium Medium Armor Plating Centrium Medium Armor Plating > --- WEAPON ----------- Long-range Proton Cannon Cooled Particle Cannon Gauss Rifle Helical Railgun > --- INVENTORY -------- Light Fission Core Light Fission Core Flexi-carbon Leg Advanced Heat Sink Energy Well Layered Light Armor Plating Advanced Shield Generator Minesniffer Drone Bay Powered Cannon Long-range Missile Launcher Molecular Deconstructor Impact Mace Makeshift Sword [Rating: 104] Favorites ----------- Power Fission Core Engine Makeshift Power Source Power Core Fission Core Reactor Quantum Reactor Propulsion Improved Titanium Leg Treads Light Treads Leg Improved Titanium Leg Wheel Compact Wheel Hover Unit Makeshift Hover Unit Flight Unit Improved Flight Unit Utility Large Storage Unit Device Improved Cooling System Storage Large Storage Unit Processor Advanced Signal Interpreter Hackware Hacking Suite Protection Centrium Medium Armor Plating Weapon Plasma Rifle Energy Gun Plasma Rifle Energy Cannon Cooled Particle Cannon Ballistic Gun Battle Rifle Launcher Missile Launcher Impact Weapon Makeshift Hammer Slashing Weapon Makeshift Sword Piercing Weapon Makeshift Spear Build | -11 -10 -10 -8 -7 -7 -7 -7 -6 -6 -6 -6 -6 -6 -5 -5 -5 -5 -4 ------- Run | Yrd Mat Sub Mat Fac Low Low Dat Pro Fac Ext Cet Arc Hub Fac Upp Upp War Pro Slots Evolved 10 | . . . 4 2 . . . . 2 . . . . 2 . . . . Power 1 | . . . . . . . . . . . . . . 1 . . . . Propulsion 2 | . . . 1 . . . . . 1 . . . . . . . . . Utility 5 | . . . 2 2 . . . . . . . . . 1 . . . . Weapon 2 | . . . 1 . . . . . 1 . . . . . . . . . Parts Attached 175 | 9 4 8 14 25 2 1 . 4 22 20 7 3 3 23 3 3 15 9 Power 12 | 1 . 1 . 2 . . . 1 1 2 1 . . 1 . . . 2 Engine 5 | 1 . 1 . 2 . . . 1 . . . . . . . . . . Core 6 | . . . . . . . . . 1 2 . . . 1 . . . 2 Reactor 1 | . . . . . . . . . . . 1 . . . . . . . Propulsion 55 | 4 1 2 5 5 1 . . 1 5 10 1 1 1 5 . 2 9 2 Treads 3 | 2 . . . . . . . . . . . . . . . . . 1 Leg 47 | . . 2 5 5 1 . . 1 5 10 1 1 1 5 . . 9 1 Wheel 3 | 2 . . . . . . . . . . . . . . . 1 . . Hover 1 | . . . . . . . . . . . . . . . . 1 . . Flight 1 | . 1 . . . . . . . . . . . . . . . . . Utility 60 | 2 1 2 3 11 1 1 . 1 7 5 5 2 . 10 1 . 4 4 Device 26 | 1 . 2 2 4 . 1 . 1 2 2 2 2 . 3 . . 1 3 Storage 3 | 1 1 . . . . . . . . 1 . . . . . . . . Processor 7 | . . . . 2 . . . . 2 . . . . . 1 . 2 . Hackware 3 | . . . . 1 . . . . . . . . . 2 . . . . Protection 21 | . . . 1 4 1 . . . 3 2 3 . . 5 . . 1 1 Artifact . | . . . . . . . . . . . . . . . . . . . Weapon 48 | 2 2 3 6 7 . . . 1 9 3 . . 2 7 2 1 2 1 Energy Gun 28 | 2 2 . 5 3 . . . . 4 3 . . 2 6 1 . . . Energy Cannon 10 | . . . . 2 . . . . 5 . . . . . 1 1 . 1 Ballistic Gun 5 | . . 2 . 1 . . . . . . . . . . . . 2 . Ballistic Cannon . | . . . . . . . . . . . . . . . . . . . Launcher 2 | . . . . 1 . . . . . . . . . 1 . . . . Special Weapon . | . . . . . . . . . . . . . . . . . . . Impact Weapon 1 | . . 1 . . . . . . . . . . . . . . . . Slashing Weapon 1 | . . . 1 . . . . . . . . . . . . . . . Piercing Weapon 1 | . . . . . . . . 1 . . . . . . . . . . Special Melee Weapon . | . . . . . . . . . . . . . . . . . . . Unidentified Prototypes 14 | . 1 . 1 5 . . . . . . 1 . . 2 . . 4 . Parts Lost 65 | . . 1 3 6 . 1 . 7 7 4 2 3 1 12 2 4 10 2 Power 6 | . . . . . . . . 2 1 . . . . 1 . . 1 1 Propulsion 21 | . . 1 1 1 . . . 2 3 2 . 1 . 4 . 3 3 . Utility 16 | . . . . 3 . 1 . 2 1 . 2 . . 3 1 . 2 1 Weapon 22 | . . . 2 2 . . . 1 2 2 . 2 1 4 1 1 4 . Highest Loss Streak 11 | . . 1 1 3 . 1 . 6 3 4 2 3 1 10 2 4 10 11 To Critical Strikes 1 | . . . . . . . . . . . 1 . . . . . . . Average Backups 12 | 3 12 13 12 13 9 11 13 7 11 13 13 13 13 13 10 12 12 11 Power . | . 1 1 1 . 1 1 1 . . . 1 1 1 . 2 2 2 1 Propulsion 1 | 2 4 2 1 2 2 3 3 1 1 1 2 1 1 1 . . . 1 Utility 4 | . 3 5 4 3 1 2 2 1 4 4 4 4 5 5 4 6 6 2 Weapon 5 | . 4 4 5 6 4 5 7 4 5 6 6 6 6 4 3 3 4 4 Tool/Special . | . . . . . . . . . . . . . . . . . . . Unused Backups 41 | . . 3 3 7 . . . . 6 2 2 1 . 4 . . 4 9 Power 4 | . . . . 1 . . . . . . 1 . . . . . . 2 Propulsion 6 | . . . . 3 . . . . . . . . . 2 . . . 1 Utility 14 | . . 2 2 . . . . . 2 2 1 1 . . . . 4 . Weapon 16 | . . 1 1 3 . . . . 4 . . . . 2 . . . 5 Tool/Special 1 | . . . . . . . . . . . . . . . . . . 1 Average Slot Usage (%) 93 | . 100 99 95 95 99 97 73 89 95 99 96 98 100 86 84 84 88 75 Engine 4 | . 14 14 9 7 7 7 7 6 3 . . . . . . . . . Core 3 | . . . . . . . . . 2 6 3 . . . 11 11 10 10 Treads 3 | . 27 23 . . . . . . . . . . . . . . . 4 Leg 18 | . . 4 22 22 23 23 23 22 26 26 26 25 26 22 17 4 3 16 Device 12 | . 14 14 19 12 21 20 15 13 14 12 12 13 13 11 7 5 9 13 Storage 7 | . 14 14 9 7 7 7 7 7 6 12 6 6 6 5 5 5 5 7 Processor 4 | . . . . 3 . . . . 4 6 6 6 6 5 6 11 6 11 Hackware 2 | . . . . 5 7 7 7 7 3 . . . . 3 . . . . Protection 8 | . . . 6 11 7 7 7 7 7 6 10 12 13 7 15 17 16 4 Energy Gun 16 | . 28 26 22 19 19 23 4 16 8 25 25 21 22 17 3 4 4 . Energy Cannon 2 | . . . . . . . . 5 8 . . . . . 9 7 10 4 Slashing Weapon 2 | . . . . 2 3 . . . 4 . . 4 3 2 3 5 4 . Peak Build Rating 104 | 7 13 17 38 52 51 51 48 50 70 78 92 92 94 99 86 87 104 87 Average Rating 58 | 5 10 12 27 43 47 48 38 46 62 69 83 89 91 87 76 76 85 83 On Entrance 53 | . 7 11 17 37 44 48 48 48 49 69 78 92 90 93 65 85 82 54 Avg Prop Armor Cover (%) 3 | 12 11 . 6 . . . . . . . . . . . . 1 1 6 Naked Turns . | . . . . . . . . . . . . . . . . . . . Heaviest Build 90 | 14 32 33 45 56 53 50 50 53 70 62 76 73 74 81 83 83 90 64 Greatest Support 86 | 20 40 40 45 60 60 57 57 57 80 81 81 81 86 86 56 56 85 70 Greatest Overweight (x) 5 | 3 1 1 2 1 . . . . . . . 1 . 1 1 5 5 . Average Overweight (x) . | . . . . . . . . . . . . . . . 1 3 4 . Largest Inventory Capacity 15 | 8 15 15 15 15 15 15 15 15 15 15 15 15 15 15 15 15 15 15 Average Capacity 14 | 7 14 15 15 15 15 15 15 15 15 15 15 15 15 15 15 15 15 15 Most Carried 15 | 7 15 15 15 15 12 12 15 11 15 15 15 15 15 15 14 15 15 15 Average Carried 13 | 4 12 14 13 14 10 11 14 8 12 14 14 14 14 14 11 14 14 12 Final Capacity 15 | 8 15 15 15 15 15 15 15 15 15 15 15 15 15 15 15 15 15 15 Final Carried 15 | 6 15 15 14 9 12 12 12 8 15 15 15 15 15 12 12 15 14 15 Class Distribution -------------------- 26% | Mutant 23% | Tank 13% | Scavenger-Tank 8% | Derelict-Tank 7% | Pyromaniac-Tank 4% | Derelict-Mutant 4% | Skirmisher 4% | Gunner Dominant Class ---------------- Mutant | -10/Materials Mutant | -10/Subcaves Tank | -8/Materials Tank | -7/Factory Tank | -7/Lower Caves Tank | -7/Lower Caves Mutant | -7/Data Miner Tank | -6/Proximity Caves Tank | -6/Factory Pyromaniac-Tank | -6/Extension Scavenger-Tank | -6/Cetus Scavenger-Tank | -6/Archives Scavenger-Tank | -6/Hub_04(d) Scavenger-Tank | -5/Factory Mutant | -5/Upper Caves Derelict-Mutant | -5/Upper Caves Derelict-Tank | -5/Warlord Scavenger-Mutant | -4/Proximity Caves Resources | -11 -10 -10 -8 -7 -7 -7 -7 -6 -6 -6 -6 -6 -6 -5 -5 -5 -5 -4 ----------- Run | Yrd Mat Sub Mat Fac Low Low Dat Pro Fac Ext Cet Arc Hub Fac Upp Upp War Pro Matter Collected 3763 | 282 12 216 255 590 105 44 . 185 330 269 70 69 43 619 96 179 289 110 Remotely . | . . . . . . . . . . . . . . . . . . . Salvage Created 7892 | 25 12 184 604 1152 73 45 . 261 1049 1535 261 576 94 1276 124 225 107 289 Parts 284 | 3 . 16 31 45 2 4 . 5 43 26 7 29 8 35 1 10 6 13 Haulers Intercepted 7 | . . . 2 1 . . . . 1 3 . . . . . . . . Recyclers Shooed 3 | . . . . . . . . . 3 . . . . . . . . . Parts Field Recycled . | . . . . . . . . . . . . . . . . . . . Retrieved Matter . | . . . . . . . . . . . . . . . . . . . Parts Self-Destructed 56 | . . 6 . . 11 9 . 7 . . . . . . 2 14 . 7 Prevented 2 | . . . . . 2 . . . . . . . . . . . . . Parts Restored . | . . . . . . . . . . . . . . . . . . . Kills | -11 -10 -10 -8 -7 -7 -7 -7 -6 -6 -6 -6 -6 -6 -5 -5 -5 -5 -4 ------- Run | Yrd Mat Sub Mat Fac Low Low Dat Pro Fac Ext Cet Arc Hub Fac Upp Upp War Pro Combat Hostiles Destroyed 149 | . . 6 14 23 1 1 . 8 18 21 3 4 4 28 2 9 3 4 Melee 1 | . . . . . . . . 1 . . . . . . . . . . Guns 85 | . . 6 13 21 1 1 . 2 2 13 3 3 4 12 . 1 3 . Cannons 19 | . . . . . . . . 1 11 . . . . 1 2 1 . 3 AOE 25 | . . . . . . . . 4 4 3 . . . 7 . 7 . . Classes Destroyed 19 | 1 1 1 6 4 . . . 2 1 2 . 1 . . . . . . Worker 3 | . . . 1 1 . . . . . . . . . 1 . . . . Builder 2 | . . . . . . . . . . 1 . . . 1 . . . . Tunneler 3 | 2 . . 1 . . . . . . . . . . . . . . . Hauler 7 | . . . 2 1 . . . . 1 3 . . . . . . . . Recycler 2 | . . . . 2 . . . . . . . . . . . . . . Mechanic 1 | . . . . 1 . . . . . . . . . . . . . . Operator 7 | . . . . . . . . . . . . 7 . . . . . . Watcher 5 | . 1 . 2 . . . . . 1 . . . . 1 . . . . Swarmer 38 | . . . 4 6 . . . 1 3 4 . . 4 10 . 4 2 . Grunt 41 | . . . 4 7 . . . 3 6 9 . . . 2 2 5 1 2 Brawler 3 | . . . . . . . . 1 1 . . . . 1 . . . . Duelist 4 | . . . . . . . . . 2 . . . . 1 . . . 1 Sentry 23 | . . . 4 2 1 . . 2 1 6 . 4 . 2 . . . 1 Demolisher 1 | . . . . . . . . 1 . . . . . . . . . . Specialist 1 | . . . . 1 . . . . . . . . . . . . . . Hunter 11 | . . . 2 3 . . . . 3 . . . . 3 . . . . Programmer 16 | . . . . 4 . 1 . . 2 . . . . 9 . . . . Behemoth 2 | . . . . . . . . . . 2 . . . . . . . . Cetus Guard 3 | . . . . . . . . . . . 3 . . . . . . . Subdweller 6 | . . 6 . . . . . . . . . . . . . . . . Savage 1 | . . . . . . . . . . . 1 . . . . . . . Best Kill Streak 9 | 2 1 2 5 5 1 1 . 4 6 6 2 2 4 9 2 5 3 3 Combat Bots Only 7 | . . 2 4 5 1 1 . 4 6 6 2 2 4 7 2 5 3 3 Max Kills in Single Turn 4 | 1 1 1 2 3 1 1 . 2 2 2 1 1 2 4 1 3 1 1 Gunslinging 1 | . . . . 1 . . . . . 1 . . 1 1 . . . . Exploded 3 | . . . . . . . . 2 2 2 . . . 3 . 3 . . Melee 1 | . . . . . . . . 1 . . . . . . . . . . Uniques/NPCs Destroyed . | . . . . . . . . . . . . . . . . . . . Combat | -11 -10 -10 -8 -7 -7 -7 -7 -6 -6 -6 -6 -6 -6 -5 -5 -5 -5 -4 -------- Run | Yrd Mat Sub Mat Fac Low Low Dat Pro Fac Ext Cet Arc Hub Fac Upp Upp War Pro Hostile Shots Fired 1182 | . . 18 69 236 18 2 . 65 119 174 30 15 15 240 32 26 97 26 Missed 403 | . . 4 22 86 9 1 . 32 45 84 8 7 4 65 8 4 17 7 Hits 779 | . . 14 47 150 9 1 . 33 74 90 22 8 11 175 24 22 80 19 Melee 5 | . . . . . . . . . 3 . . . . 1 . . 1 . Projectile 774 | . . 14 47 150 9 1 . 33 71 90 22 8 11 174 24 22 79 19 AOE 15 | . . . . . . . . 4 . 1 . . . . . . 10 . Critical Strikes 37 | . . 2 1 1 . . . . 8 7 5 . . 6 1 1 3 2 Part Disruptions 2 | . . . . 1 . . . . . . . . . 1 . . . . Damage Taken 14820 | . . 410 639 2279 60 15 . 711 1369 1188 689 196 180 3372 468 411 2502 331 Core 1868 | . . 41 97 341 6 . . 98 143 137 . . . 267 33 39 600 66 Absorbed by Shields 124 | . . . . . . . . . . 58 . . . . . . . 66 Redirected to Shielding 3 | . . . . . . . . . 3 . . . . . . . . . Ignored by Resistances 15 | . . . . . . . . . 15 . . . . . . . . . Regen/Repaired (Parts) 813 | . . . . . . . . . 16 139 . . . 103 . . 555 . Core Remaining (%) 73 | 100 . 83 82 . . . . 36 . . . . 67 . . . . . Volleys Fired 402 | 5 4 33 34 55 4 1 . 17 48 47 12 9 5 51 13 20 9 35 Largest 4 | 2 2 2 3 3 3 3 . 3 4 4 4 4 4 4 3 2 4 1 Hottest 340 | 90 130 130 195 210 165 165 . 200 300 300 300 300 312 340 200 111 220 40 Shots Fired 1049 | 10 8 46 98 148 11 3 . 42 118 182 42 32 20 175 26 22 31 35 Gun 844 | 10 8 46 98 147 11 3 . 24 38 180 41 32 20 165 2 2 17 . Cannon 187 | . . . . . . . . 13 78 . 1 . . 8 24 14 14 35 Launcher 18 | . . . . 1 . . . 5 2 2 . . . 2 . 6 . . Special . | . . . . . . . . . . . . . . . . . . . Kinetic 52 | . . 20 16 . . . . . . . . . . . . . 16 . Thermal 974 | 10 8 26 82 147 11 3 . 37 116 180 42 32 20 173 26 16 10 35 Explosive 18 | . . . . 1 . . . 5 2 2 . . . 2 . 6 . . Electromagnetic 5 | . . . . . . . . . . . . . . . . . 5 . Robot Hit Streak 22 | 3 6 17 21 22 10 11 . 11 19 22 11 11 3 12 4 7 7 16 Robot Miss Streak 9 | 1 9 3 5 5 . 1 . 4 4 2 4 2 4 7 2 1 2 . Penetration Max 1 | . . . . . . . . . . . . . . . . . 1 . Secondary Targets 15 | . . . . 3 . . . . . 5 1 . 1 5 . . . . Max Gunslinging Chain 2 | . . . . 1 . . . . . 1 1 . 1 2 . . . . Shots Hit Robots 696 | 7 6 23 79 110 9 2 . 27 83 119 26 34 7 111 14 7 17 15 Core Hits 455 | 3 5 35 85 80 3 2 . 22 41 53 13 19 4 50 6 15 12 7 Critical Kills 1 | . . . . . . . . . . . . . . . . . . 1 Critical Parts Destroyed 1 | . . . . . . . . . . . . . . . . . 1 . Critical Strikes 49 | . . . 1 1 1 . . 1 2 14 2 3 . 21 1 . 1 1 Burn 46 | . . . 1 1 1 . . 1 2 14 2 2 . 21 1 . . . Meltdown 1 | . . . . . . . . . . . . . . . . . . 1 Destroy 1 | . . . . . . . . . . . . . . . . . 1 . Sever 1 | . . . . . . . . . . . . 1 . . . . . . Melee Attacks 121 | . . 2 7 28 3 . . 1 31 . . 15 8 26 . . . . Impact 2 | . . 2 . . . . . . . . . . . . . . . . Slashing 118 | . . . 7 28 3 . . . 31 . . 15 8 26 . . . . Piercing 1 | . . . . . . . . 1 . . . . . . . . . . Sneak Attacks 13 | . . . . 2 . . . 1 2 . . 8 . . . . . . Combat Hostiles . | . . . . . . . . . . . . . . . . . . . Follow-up Attacks . | . . . . . . . . . . . . . . . . . . . Damage Inflicted 20392 | 81 62 420 1330 2574 166 48 . 1339 2837 3143 640 1365 222 3238 387 1093 730 717 Guns 12054 | 81 62 420 1243 2376 166 48 . 377 610 2860 640 477 159 2104 18 48 365 . Cannons 3342 | . . . . . . . . 323 1406 . . . . 136 369 26 365 717 Explosions 3468 | . . . . 2 . . . 594 591 283 . . . 979 . 1019 . . Melee 1337 | . . . 39 144 . . . 45 221 . . 888 . . . . . . Ramming 191 | . . . 48 52 . . . . 9 . . . 63 19 . . . . Kinetic 500 | . . . 135 . . . . . . . . . . . . . 365 . Thermal 15208 | 81 62 420 1108 2376 166 48 . 700 2283 2860 640 477 159 2454 387 74 196 717 Explosive 2987 | . . . . 2 . . . 594 324 283 . . . 765 . 1019 . . Electromagnetic 169 | . . . . . . . . . . . . . . . . . 169 . Impact . | . . . . . . . . . . . . . . . . . . . Slashing 1292 | . . . 39 144 . . . . 221 . . 888 . . . . . . Piercing 45 | . . . . . . . . 45 . . . . . . . . . . Highest Corruption 12 | . . . . 9 4 4 4 4 1 1 1 1 5 12 12 12 12 3 Average Corruption 5 | . . . . 3 4 4 4 4 1 1 1 1 5 7 12 12 8 3 Corruption Purged 6 | . . . . 5 . . . . . . . 1 . . . . . . Corruption Blocked . | . . . . . . . . . . . . . . . . . . . Effects 180 | . . . . 23 9 10 3 11 2 8 1 4 7 41 19 35 4 3 Message Errors 41 | . . . . 5 1 2 1 3 . 3 . 2 2 10 5 5 1 1 Matter Fused 46 | . . . . 7 3 3 . 3 1 1 . 2 1 9 3 11 2 . Heat Flow Errors 20 | . . . . 3 1 2 . 1 . 1 . . 1 6 . 5 . . Energy Discharges 17 | . . . . 2 2 1 1 . 1 1 . . . 1 4 4 . . Parts Rejected 2 | . . . . 1 . . . . . . . . 1 . . . . . Parts Fused 2 | . . . . . . 1 . . . . . . . . . 1 . . Data Loss (minor) 24 | . . . . 2 1 . 1 1 . 2 1 . 2 4 3 5 1 1 Data Loss (major) 8 | . . . . . 1 . . . . . . . . 4 . 2 . 1 Misfires 6 | . . . . 1 . . . 1 . . . . . 2 1 1 . . Alerts 7 | . . . . . . 1 . 2 . . . . . 2 2 . . . Misdirections 1 | . . . . . . . . . . . . . . 1 . . . . Weapon Failures 6 | . . . . 2 . . . . . . . . . 2 1 1 . . Overload Shots 9 | . . . . . . . . 7 1 . 1 . . . . . . . Effects 1 | . . . . . . . . 1 . . . . . . . . . . Heat Surge 1 | . . . . . . . . 1 . . . . . . . . . . Overflow Damage 552 | . . . 4 . . . . . 106 39 . 157 . 232 . 14 . . Projectiles 3 | . . . . . . . . . 3 . . . . . . . . . Explosions 307 | . . . . . . . . . 22 39 . . . 232 . 14 . . Melee 242 | . . . 4 . . . . . 81 . . 157 . . . . . . Knockbacks . | . . . . . . . . . . . . . . . . . . . Impact . | . . . . . . . . . . . . . . . . . . . Kinetic . | . . . . . . . . . . . . . . . . . . . Secondary . | . . . . . . . . . . . . . . . . . . . Self-Inflicted Damage 418 | . . . . . . . . . 99 . . . . 319 . . . . Shots 8 | . . . . . . . . . 3 . . . . 5 . . . . Rammed . | . . . . . . . . . . . . . . . . . . . Targets Rammed 12 | . . . 4 3 . . . . 1 . . . 3 1 . . . . Kicked 12 | . . . 4 3 . . . . 1 . . . 3 1 . . . . Crushed . | . . . . . . . . . . . . . . . . . . . Highest Temperature 547 | 90 138 240 66 430 117 237 . 295 372 547 327 243 368 373 371 235 489 23 Average Temperature 120 | 40 55 154 22 104 79 117 . 107 83 127 169 91 169 124 149 94 251 5 Received Heat Transfer 2662 | . . 328 243 192 12 . . 150 270 693 54 36 . 54 171 186 179 94 Effects 28 | . . 1 . 6 . . . . 2 4 . . . 2 2 . 11 . Shutdowns 10 | . . . . 1 . . . . . 2 . . . . 1 . 6 . Energy Bleed 2 | . . 1 . . . . . . . . . . . . 1 . . . Interference 10 | . . . . 3 . . . . 2 . . . . 2 . . 3 . Matter Decay 1 | . . . . 1 . . . . . . . . . . . . . . Damage (minor) 4 | . . . . 1 . . . . . 2 . . . . . . 1 . Damage (major) 1 | . . . . . . . . . . . . . . . . . 1 . Siege Activations . | . . . . . . . . . . . . . . . . . . . Martial Activations . | . . . . . . . . . . . . . . . . . . . Shielding Activations . | . . . . . . . . . . . . . . . . . . . Robots Disrupted 1 | . . . . . . . . . . . . . . . . . 1 . Combat Hostiles 1 | . . . . . . . . . . . . . . . . . 1 . Robots Corrupted . | . . . . . . . . . . . . . . . . . . . Combat Hostiles . | . . . . . . . . . . . . . . . . . . . Parts Fried . | . . . . . . . . . . . . . . . . . . . Impact Corruptions 1 | . . . . 1 . . . . . . . . . . . . . . Robots Melted 21 | . . . 1 2 . . . . 1 7 . 1 . 8 . . . 1 Combat Hostiles 19 | . . . 1 2 . . . . 1 5 . 1 . 8 . . . 1 Parts Melted 120 | 1 . . 4 16 1 . . 3 7 31 4 7 . 42 3 . . 1 Heat Transferred 31463 | 211 75 515 1726 4293 407 74 . 1138 3412 7678 1650 1300 311 7672 631 111 259 . Parts Sabotaged . | . . . . . . . . . . . . . . . . . . . Parts Stolen . | . . . . . . . . . . . . . . . . . . . Parts Stripped . | . . . . . . . . . . . . . . . . . . . Power Chain Reactions . | . . . . . . . . . . . . . . . . . . . Alert | -11 -10 -10 -8 -7 -7 -7 -7 -6 -6 -6 -6 -6 -6 -5 -5 -5 -5 -4 ------- Run | Yrd Mat Sub Mat Fac Low Low Dat Pro Fac Ext Cet Arc Hub Fac Upp Upp War Pro Maximum Alert Level 2 | . . . . 1 . . . . . 2 1 . . 2 . . . . Low Security (%) 81 | 100 100 . 100 86 . . . . 100 58 . 100 100 70 . . . . Level 1 12 | . . . . 13 . . . . . 17 100 . . 21 . . . . Level 2 5 | . . . . . . . . . . 23 . . . 8 . . . . Level 3 . | . . . . . . . . . . . . . . . . . . . Level 4 . | . . . . . . . . . . . . . . . . . . . Level 5 . | . . . . . . . . . . . . . . . . . . . High Security . | . . . . . . . . . . . . . . . . . . . Max Security . | . . . . . . . . . . . . . . . . . . . Peak Influence 550 | 5 . . 183 320 . . . . 185 550 303 127 130 488 . . . . Initial 303 | . . . . 24 . . . . . . 303 101 9 53 . . . . Average 108 | . . . 66 82 . . . . 69 233 275 84 83 116 . . . . Influence Increases 5682 | 10 7 . 503 854 20 30 . 160 626 1362 131 146 221 1182 50 200 60 120 Destroy 0b10 Robot/C 3260 | . . . 280 460 20 20 . 160 360 800 80 80 80 560 40 180 60 80 Destroy 0b10 Robot/NC 175 | 10 5 . 30 25 . . . . 10 40 5 35 . 15 . . . . Destroy Leader 564 | . 2 . 108 112 . 10 . . 84 86 . . 10 112 10 20 . 10 Allied During Kill 342 | . . . . . . . . . . 325 16 1 . . . . . . Successful Hack 232 | . . . 6 32 . . . . 32 30 . . 42 90 . . . . Select Force Hacks 50 | . . . . . . . . . . . . . 50 . . . . . Disable Machine 375 | . . . 15 15 . . . . 75 45 30 30 30 135 . . . . Destroy Structure 309 | . . . 4 30 . . . . 50 36 . . 9 180 . . . . Partial Spotted 30 | . . . 15 . . . . . 15 . . . . . . . . . Lose Combat Pursuer 345 | . . . 45 180 . . . . . . . . . 90 . . . 30 Influence Decreases 5682 | 10 7 . 448 594 335 30 . 160 626 820 419 373 137 1071 272 200 60 120 Entered New Map 699 | . . . . 31 117 . . . . . 239 153 18 58 83 . . . Time Decay 3155 | 10 7 . 243 370 218 30 . 110 410 460 100 170 119 443 179 170 6 110 Lost Part 524 | . . . 30 60 . . . 50 70 40 20 30 . 120 10 30 54 10 Lost Ally 400 | . . . . . . . . . . 320 60 20 . . . . . . Purge Threat 904 | . . . 175 133 . . . . 146 . . . . 450 . . . . Squads Dispatched 32 | . . . 7 6 . . . 1 7 3 . . 4 4 . . . . Investigation 3 | . . . 1 . . . . . 1 . . . 1 . . . . . Extermination 9 | . . . . 3 . . . . 2 . . . . 4 . . . . Reinforcement 10 | . . . 3 2 . . . . 2 3 . . . . . . . . Assault 1 | . . . . . . . . 1 . . . . . . . . . . Garrison 9 | . . . 3 1 . . . . 2 . . . 3 . . . . . Intercept . | . . . . . . . . . . . . . . . . . . . Searches Triggered . | . . . . . . . . . . . . . . . . . . . Data Miner Redirects 1 | . . . . . . . . . . . . . 1 . . . . . Construction Impeded 2 | . . . . 1 . . . . . 1 . . . . . . . . Haulers Reinforced . | . . . . . . . . . . . . . . . . . . . Active Scanning Responses . | . . . . . . . . . . . . . . . . . . . Cargo Convoy Interrupts 2 | . . . . 1 . . . . . . . . . 1 . . . . Stealth | -11 -10 -10 -8 -7 -7 -7 -7 -6 -6 -6 -6 -6 -6 -5 -5 -5 -5 -4 --------- Run | Yrd Mat Sub Mat Fac Low Low Dat Pro Fac Ext Cet Arc Hub Fac Upp Upp War Pro Distress Signals 23 | . . . 4 . . . . 12 . 3 1 . . 2 . . 1 . Communications Jammed . | . . . . . . . . . . . . . . . . . . . Distress Signals . | . . . . . . . . . . . . . . . . . . . Times Spotted 263 | . 3 6 26 40 1 1 . 8 22 42 5 9 6 43 3 7 32 9 Peak Tracking Total 14 | . 2 2 5 9 1 1 . 5 4 7 5 2 5 9 3 5 14 4 Tactical Retreats 15 | . . . 3 8 . . . . . . . . . 3 . . . 1 Traps | -11 -10 -10 -8 -7 -7 -7 -7 -6 -6 -6 -6 -6 -6 -5 -5 -5 -5 -4 ------- Run | Yrd Mat Sub Mat Fac Low Low Dat Pro Fac Ext Cet Arc Hub Fac Upp Upp War Pro Traps Triggered 14 | . . 2 . 2 . . . 1 3 2 . . 1 3 . . . . Indirectly . | . . . . . . . . . . . . . . . . . . . Trap Hack Attempts . | . . . . . . . . . . . . . . . . . . . Triggered . | . . . . . . . . . . . . . . . . . . . Disarmed . | . . . . . . . . . . . . . . . . . . . Reprogrammed . | . . . . . . . . . . . . . . . . . . . Reused . | . . . . . . . . . . . . . . . . . . . Traps Extracted . | . . . . . . . . . . . . . . . . . . . Installed . | . . . . . . . . . . . . . . . . . . . Triggered . | . . . . . . . . . . . . . . . . . . . Machines | -11 -10 -10 -8 -7 -7 -7 -7 -6 -6 -6 -6 -6 -6 -5 -5 -5 -5 -4 ---------- Run | Yrd Mat Sub Mat Fac Low Low Dat Pro Fac Ext Cet Arc Hub Fac Upp Upp War Pro Machines Disabled 29 | . . 1 1 1 . . . 1 5 3 2 2 2 9 . 1 . 1 Max in Single Turn 6 | . . 1 1 1 . . . 1 3 . 1 1 2 6 . 1 . 1 Garrison Access 6 | . . . . 2 . . . . 2 . . . . 2 . . . . Network Hub 1 | . . . . . . . . . . . . . 1 . . . . . Energy Cycler 1 | . . . . . . . . . . 1 . . . . . . . . Machines Repaired . | . . . . . . . . . . . . . . . . . . . Machines Dismantled . | . . . . . . . . . . . . . . . . . . . Machines Sabotaged 1 | . . . . . . . . . . . . . 1 . . . . . Overloaded Fab Kills . | . . . . . . . . . . . . . . . . . . . Hacking | -11 -10 -10 -8 -7 -7 -7 -7 -6 -6 -6 -6 -6 -6 -5 -5 -5 -5 -4 --------- Run | Yrd Mat Sub Mat Fac Low Low Dat Pro Fac Ext Cet Arc Hub Fac Upp Upp War Pro Machines Accessed 67 | . 2 2 7 14 1 . 3 . 9 3 1 . 5 17 . . 2 1 Terminals 35 | . 2 . 6 7 . . . . 3 2 1 . 5 9 . . . . Fabricators 5 | . . . . 3 . . . . . . . . . 2 . . . . Repair Stations 5 | . . . . . . . . . 2 1 . . . 2 . . . . Recycling Units 1 | . . . . . . . . . 1 . . . . . . . . . Scanalyzers 5 | . . . 1 2 . . . . 1 . . . . 1 . . . . Garrison Access 7 | . . . . 2 . . . . 2 . . . . 3 . . . . Total Hacks 181 | . 4 2 20 31 3 . 22 . 21 5 3 . 10 51 . . 8 1 Successful 97 | . 1 2 5 15 3 . 22 . 13 4 . . 4 19 . . 8 1 Failed 83 | . 3 . 15 16 . . . . 7 1 3 . 6 32 . . . . Catastrophic 21 | . 1 . 2 3 . . . . 2 . 1 . 1 11 . . . . Database Lockouts 1 | . . . . . . . . . 1 . . . . . . . . . Manual 54 | . . . 9 5 . . . . 6 1 . . 7 24 . 2 . . Terminals 102 | . 4 . 18 19 . . . . 9 3 3 . 10 36 . . . . Fabricators 11 | . . . . 5 . . . . . . . . . 6 . . . . Repair Stations 9 | . . . . . . . . . 4 2 . . . 3 . . . . Recycling Units 3 | . . . . . . . . . 3 . . . . . . . . . Scanalyzers 11 | . . . 2 5 . . . . 2 . . . . 2 . . . . Garrison Access 9 | . . . . 2 . . . . 3 . . . . 4 . . . . Terminal Hacks 66 | . 1 2 4 8 3 . 22 . 5 1 . . 1 10 . . 8 1 Record 18 | . . . . . 3 . 6 . . . . . . . . . 8 1 Part Schematic 8 | . . . . . . . 8 . . . . . . . . . . . Robot Schematic 5 | . . . . . . . 5 . . . . . . . . . . . Prototype ID Bank 7 | . 1 . 1 1 . . 3 . . 1 . . . . . . . . Open Door 1 | . . 1 . . . . . . . . . . . . . . . . Branch Access Points 2 | . . . . 1 . . . . . . . . . 1 . . . . Terminal Index 2 | . . . . 1 . . . . . . . . . 1 . . . . Alert Level 4 | . . . . 1 . . . . 1 . . . . 2 . . . . Unreport Threat 7 | . . . 2 1 . . . . 1 . . . . 3 . . . . Locate Traps 6 | . . . 1 1 . . . . 2 . . . 1 1 . . . . Maintenance Status 1 | . . . . . . . . . . . . . . 1 . . . . Hauler Manifests 1 | . . . . 1 . . . . . . . . . . . . . . Registered Components 1 | . . . . 1 . . . . . . . . . . . . . . Registered Prototypes 1 | . . . . . . . . . . . . . . 1 . . . . Zone Layout 1 | . . . . . . . . . 1 . . . . . . . . . Proto ID Catalog 1 | . . 1 . . . . . . . . . . . . . . . . Fabricator Hacks 2 | . . . . 1 . . . . . . . . . 1 . . . . Network Status 2 | . . . . 1 . . . . . . . . . 1 . . . . Repair Station Hacks 7 | . . . . . . . . . 3 2 . . . 2 . . . . Scan Component 4 | . . . . . . . . . 2 1 . . . 1 . . . . Repair 3 | . . . . . . . . . 1 1 . . . 1 . . . . Recycling Unit Hacks 1 | . . . . . . . . . 1 . . . . . . . . . Retrieve Components 1 | . . . . . . . . . 1 . . . . . . . . . Scanalyzer 4 | . . . 1 2 . . . . 1 . . . . . . . . . Retrieve Study 4 | . . . 1 2 . . . . 1 . . . . . . . . . Garrison Access Hacks 6 | . . . . 2 . . . . 2 . . . . 2 . . . . Seal Access 6 | . . . . 2 . . . . 2 . . . . 2 . . . . Unauthorized Hacks 11 | . . . . 2 . . . . 1 1 . . 3 4 . . . . Terminals 9 | . . . . 2 . . . . 1 1 . . 3 2 . . . . Botnet 6 | . . . . 1 . . . . 1 . . . 2 2 . . . . Disrupt 1 | . . . . 1 . . . . . . . . . . . . . . Operators 1 | . . . . . . . . . . 1 . . . . . . . . Sabotage 1 | . . . . . . . . . . . . . 1 . . . . . Fabricators 2 | . . . . . . . . . . . . . . 2 . . . . Fabnet 1 | . . . . . . . . . . . . . . 1 . . . . Haulers 1 | . . . . . . . . . . . . . . 1 . . . . Repair Stations . | . . . . . . . . . . . . . . . . . . . Recycling Units . | . . . . . . . . . . . . . . . . . . . Scanalyzers . | . . . . . . . . . . . . . . . . . . . Garrison Access . | . . . . . . . . . . . . . . . . . . . Data Cores Recovered . | . . . . . . . . . . . . . . . . . . . Used . | . . . . . . . . . . . . . . . . . . . Hacking Detections 51 | . 2 . 7 12 . . . . 7 3 1 . 4 15 . . . . Full Trace Events 2 | . . . 1 . . . . . 1 . . . . . . . . . Feedback Events . | . . . . . . . . . . . . . . . . . . . Feedback Blocked . | . . . . . . . . . . . . . . . . . . . Robot Schematics Acquired 5 | . . . . . . . 5 . . . . . . . . . . . Robots Built . | . . . . . . . . . . . . . . . . . . . Authchips . | . . . . . . . . . . . . . . . . . . . Time . | . . . . . . . . . . . . . . . . . . . Total Robot Build Rating . | . . . . . . . . . . . . . . . . . . . Part Schematics Acquired 8 | . . . . . . . 8 . . . . . . . . . . . Parts Built . | . . . . . . . . . . . . . . . . . . . Authchips . | . . . . . . . . . . . . . . . . . . . Time . | . . . . . . . . . . . . . . . . . . . Total Part Build Rating . | . . . . . . . . . . . . . . . . . . . Part Studies Acquired 4 | . . . 1 2 . . . . 1 . . . . . . . . . Parts Repaired 3 | . . . . . . . . . 1 1 . . . 1 . . . . Time 126 | . . . . . . . . . 26 38 . . . 62 . . . . Parts Recycled . | . . . . . . . . . . . . . . . . . . . Recycled Matter . | . . . . . . . . . . . . . . . . . . . Retrieved Matter . | . . . . . . . . . . . . . . . . . . . Retrieved Components 9 | . . . . . . . . . 9 . . . . . . . . . Parts Scanalyzed . | . . . . . . . . . . . . . . . . . . . Part Schematics Acquired . | . . . . . . . . . . . . . . . . . . . Parts Damaged . | . . . . . . . . . . . . . . . . . . . Bothacking | -11 -10 -10 -8 -7 -7 -7 -7 -6 -6 -6 -6 -6 -6 -5 -5 -5 -5 -4 ------------ Run | Yrd Mat Sub Mat Fac Low Low Dat Pro Fac Ext Cet Arc Hub Fac Upp Upp War Pro Used RIF Installer . | . . . . . . . . . . . . . . . . . . . Robots Hacked . | . . . . . . . . . . . . . . . . . . . Non-combat . | . . . . . . . . . . . . . . . . . . . Combat . | . . . . . . . . . . . . . . . . . . . Robot Hacks Applied . | . . . . . . . . . . . . . . . . . . . Relay Couplers Released . | . . . . . . . . . . . . . . . . . . . Fabnet Peak Effective % 3 | . . . . . . . . . . . . . . . . . . 3 Robots Rewired 17 | . . . . . . . . . . 17 . . . . . . . . Allies Hacked 1 | . . . . . . . . . . 1 . . . . . . . . Hacks Repelled . | . . . . . . . . . . . . . . . . . . . Allies | -11 -10 -10 -8 -7 -7 -7 -7 -6 -6 -6 -6 -6 -6 -5 -5 -5 -5 -4 -------- Run | Yrd Mat Sub Mat Fac Low Low Dat Pro Fac Ext Cet Arc Hub Fac Upp Upp War Pro Total Allies 23 | . . . . . . . . . . 23 . . . . . . . . Largest Group 10 | . . . . . . . . . . 10 5 1 . . . . . . Highest-Rated Group 409 | . . . . . . . . . . 409 116 19 . . . . . . Highest-Rated Ally 159 | . . . . . . . . . . 159 31 19 . . . . . . Total Orders . | . . . . . . . . . . . . . . . . . . . Ally Attacks 170 | . . . . . . . . . . 158 12 . . . . . . . Total Damage 3854 | . . . . . . . . . . 3515 339 . . . . . . . Kills 26 | . . . . . . . . . . 24 2 . . . . . . . Allies Corrupted . | . . . . . . . . . . . . . . . . . . . Allies Melted 1 | . . . . . . . . . . 1 . . . . . . . . Intel | -11 -10 -10 -8 -7 -7 -7 -7 -6 -6 -6 -6 -6 -6 -5 -5 -5 -5 -4 ------- Run | Yrd Mat Sub Mat Fac Low Low Dat Pro Fac Ext Cet Arc Hub Fac Upp Upp War Pro Active Infowar (turns) 8551 | 6 498 856 161 1481 499 244 . 63 478 85 . 1 242 1258 550 831 910 388 Sensors 4743 | . . . . . . . . . 478 85 . 1 242 1258 550 831 910 388 Seismic 3808 | 6 498 856 161 1481 499 244 . 63 . . . . . . . . . . Robot Analysis Total . | . . . . . . . . . . . . . . . . . . . Derelict Logs Recovered 7 | . . 2 . . 2 . . . . . . . . . 1 1 . 1 Drone Launches . | . . . . . . . . . . . . . . . . . . . Drone Recoveries . | . . . . . . . . . . . . . . . . . . . Exploration | -11 -10 -10 -8 -7 -7 -7 -7 -6 -6 -6 -6 -6 -6 -5 -5 -5 -5 -4 ------------- Run | Yrd Mat Sub Mat Fac Low Low Dat Pro Fac Ext Cet Arc Hub Fac Upp Upp War Pro Turns Passed 13951 | 105 498 1256 758 1809 517 383 95 392 1360 1295 211 358 264 1942 579 831 910 388 Spaces Moved 8360 | 51 277 682 333 1285 373 313 76 240 872 715 114 197 179 1183 277 457 487 249 Core 5 | 5 . . . . . . . . . . . . . . . . . . Treads 895 | 36 277 582 . . . . . . . . . . . . . . . . Legs 6676 | . . 100 333 1285 373 313 76 240 872 715 114 197 179 1183 277 112 58 249 Wheels 784 | 10 . . . . . . . . . . . . . . . 345 429 . Hover . | . . . . . . . . . . . . . . . . . . . Flight . | . . . . . . . . . . . . . . . . . . . Fastest Speed 50 | 50 160 160 105 105 115 120 120 120 112 108 116 116 116 120 190 160 107 108 Average Speed 132 | 142 169 164 167 107 117 120 120 120 117 111 116 117 116 126 190 169 172 111 Slowest Speed 260 | 200 240 240 260 185 120 120 120 120 118 117 116 185 120 190 190 190 185 113 Overloaded Moves . | . . . . . . . . . . . . . . . . . . . Propulsion Burnouts . | . . . . . . . . . . . . . . . . . . . Robots Hopped . | . . . . . . . . . . . . . . . . . . . Potential Cave-ins 1 | . . . . . . . . . . . . . . . . . 1 . Cave-ins Triggered 1 | . . . . 1 . . . . . . . . . . . . . . Exploration Rate (%) 48 | 5 44 50 36 39 55 56 68 50 21 86 59 95 21 36 36 63 65 34 Regions Visited 18 Branch Regions 13 Pre-discovered Areas 2 | . . 1 . . . . 1 . . . . . . . . . . . Known Exits Taken 10 | . . . . 1 . . . . 1 1 1 1 1 1 1 1 1 . Unknown Exits Taken 8 | 1 1 1 1 . 1 1 1 1 . . . . . . . . . . Scrap Searched 19 | . . 6 . . 3 2 . 1 . . . . . . 3 3 . 1 Spaces Dug 117 | . . . 4 26 3 . . . 26 . . . 8 25 2 4 . 19 Terrain Destroyed 368 | . . . 4 32 3 . . 35 58 19 . . 8 99 7 83 1 19 Melee 91 | . . . 4 26 3 . . . 25 . . . 8 25 . . . . Projectile 42 | . . . . 2 . . . 2 4 3 . . . . 7 4 1 19 AOE 235 | . . . . 4 . . . 33 29 16 . . . 74 . 79 . . Terrain Rammed . | . . . . . . . . . . . . . . . . . . . Walls Destroyed . | . . . . . . . . . . . . . . . . . . . Machines Disabled . | . . . . . . . . . . . . . . . . . . . Actions | -11 -10 -10 -8 -7 -7 -7 -7 -6 -6 -6 -6 -6 -6 -5 -5 -5 -5 -4 --------- Run | Yrd Mat Sub Mat Fac Low Low Dat Pro Fac Ext Cet Arc Hub Fac Upp Upp War Pro Total 10294 | 71 295 767 458 1553 438 318 81 307 1097 1103 167 285 212 1480 305 488 539 330 Wait 658 | . . 23 33 96 50 2 . 34 71 97 20 53 11 128 6 1 6 27 Move 8342 | 50 276 681 332 1284 372 312 75 239 871 714 113 196 178 1182 276 456 486 249 Hop . | . . . . . . . . . . . . . . . . . . . Pick Up 136 | 5 9 7 14 14 4 . . 1 26 9 7 4 . 16 4 4 6 6 Fast Attach 53 | 8 . . 1 5 . . . 2 7 3 1 . 1 13 2 1 7 2 Attach 76 | 1 . 1 7 9 1 1 3 5 11 4 4 3 1 9 4 3 3 6 Detach 17 | 2 . . . 3 . 1 3 . 2 . . . . 1 . 1 3 1 Swap 172 | . 5 11 13 38 4 1 . 3 14 19 4 4 5 36 . 2 9 4 Drop 109 | . 1 9 13 18 . . . . 15 19 6 1 . 17 . . 10 . Fire 402 | 5 4 33 34 55 4 1 . 17 48 47 12 9 5 51 13 20 9 35 Melee 121 | . . 2 7 28 3 . . 1 31 . . 15 8 26 . . . . Ram . | . . . . . . . . . . . . . . . . . . . Kick 12 | . . . 4 3 . . . . 1 . . . 3 1 . . . . Crush . | . . . . . . . . . . . . . . . . . . . Escape Stasis 14 | . . . . . . . . 5 . 9 . . . . . . . . Rewire 182 | . . . . . . . . . . 182 . . . . . . . . Trap . | . . . . . . . . . . . . . . . . . . . Miscellaneous . | . . . . . . . . . . . . . . . . . . . Route ------- -11/Scrapyard -10/Materials (discovered 2 exits: [*Min] / *Sub) -10/Subcaves -8/Materials -7/Factory (discovered 2 exits: *Low x2) -7/Lower Caves -7/Lower Caves (discovered 2 exits: *Fac / *Dat) -7/Data Miner -6/Proximity Caves -6/Factory (discovered 2 exits: [*Low] / *Ext) -6/Extension (discovered 3 exits: *Fac x2 / *Cet) -6/Cetus -6/Archives (discovered 3 exits: *Fac / *Hub x2) -6/Hub_04(d) -5/Factory (discovered 2 exits: *Upp x2) -5/Upper Caves -5/Upper Caves (discovered 2 exits: *Fac / *War) -5/Warlord -4/Proximity Caves (discovered 1 exit: Fac) History --------- Turn | Location | Event 39 | -11/Scrapyard | Discovered new exit (range 16) 106 | -11/Scrapyard | Entered Materials 260 | -10/Materials | Discovered new exit (range 15) 317 | -10/Materials | Build established: Mutant 467 | -10/Materials | Discovered new exit (range 11) 604 | -10/Materials | Entered Subcaves 882 | -10/Subcaves | Learned location of Zion (-6) 882 | -10/Subcaves | Met a Zionite searching for "candidates" 1090 | -10/Subcaves | A swath of the cavern ceiling suddenly collapsed 1178 | -10/Subcaves | Shifting Twisted Machinery released Shrapnel Trap 1180 | -10/Subcaves | Shifting Twisted Machinery released Sub. Optics 1198 | -10/Subcaves | Learned Materials trap positions 1340 | -10/Subcaves | Visited 4L-MR0's lab 1381 | -10/Subcaves | Found Powered Cannon 1466 | -10/Subcaves | Shifting Twisted Machinery released Battle Cannon 1476 | -10/Subcaves | Shifting Twisted Machinery released Riot Gun 1648 | -10/Subcaves | Disturbed a concealed Subdweller 1738 | -10/Subcaves | Learned Materials terminal intel 1740 | -10/Subcaves | Discovered new exit (range 14) 1860 | -10/Subcaves | Entered Materials 1860 | -8/Materials | Evolved 4 slots: Propulsion x1, Utility x2, Weapon x1 1861 | -8/Materials | Loaded intel: 30 trap records 1862 | -8/Materials | Loaded intel: 11 terminal locations 2029 | -8/Materials | Garrison activated, responded to threat 2473 | -8/Materials | Build established: Tank 2503 | -8/Materials | Discovered new exit (range 16) 2618 | -8/Materials | Entered Factory 2618 | -7/Factory | Evolved 2 slots: Utility x2 3331 | -7/Factory | Discovered new exit (range 5) 3378 | -7/Factory | Identified exit to Lower Caves 4051 | -7/Factory | Garrison activated, responded to threat 4115 | -7/Factory | Crushed by falling debris 4117 | -7/Factory | Cargo convoy interrupted 4295 | -7/Factory | Lost 3 parts (2u1w) 4427 | -7/Factory | Entered Lower Caves 4431 | -7/Lower Caves | Learned Factory stockpile data 4614 | -7/Lower Caves | Learned Armory stockpile data 4657 | -7/Lower Caves | Attracted the attention of an 0b10 checkpoint 4688 | -7/Lower Caves | Learned Factory emergency access door positions 4937 | -7/Lower Caves | Discovered new exit (range 7) 4944 | -7/Lower Caves | Entered another Lower Caves area 4962 | -7/Lower Caves | Discovered new exit (range 14) 5177 | -7/Lower Caves | Spotted B-75 Beast 5241 | -7/Lower Caves | Encountered a Warlord checkpoint 5304 | -7/Lower Caves | Discovered new exit (range 9) 5327 | -7/Lower Caves | Entered Data Miner 5327 | -7/Data Miner | Discovered new exit (range 6) 5352 | -7/Data Miner | Met Data Miner 5373 | -7/Data Miner | Learned location of Section 7 (-2) 5373 | -7/Data Miner | Acquired the access code to Warlord's prototype stash 5390 | -7/Data Miner | Received God Mode back door access code from Data Miner 5422 | -7/Data Miner | Entered Proximity Caves 5480 | -6/Proximity Caves | Attracted the attention of an 0b10 outpost 5518 | -6/Proximity Caves | Core integrity fell below 50% 5548 | -6/Proximity Caves | Lost 6 parts (2p1n2u1w) 5779 | -6/Proximity Caves | Discovered new exit (range 6) 5814 | -6/Proximity Caves | Entered Factory 5814 | -6/Factory | Evolved 2 slots: Propulsion x1, Weapon x1 5831 | -6/Factory | Central database locked down 5914 | -6/Factory | Garrison activated, responded to threat 5996 | -6/Factory | Discovered new exit (range 5) 6275 | -6/Factory | Discovered new exit (range 10) 6492 | -6/Factory | Garrison activated, responded to threat 6524 | -6/Factory | Lost 3 parts (1p2n) 6556 | -6/Factory | Build established: Gunner 7107 | -6/Factory | Repaired Broken Imp. Sensor Array 7173 | -6/Factory | Identified exit to Extension 7174 | -6/Factory | Entered Extension 7204 | -6/Extension | Build established: Tank 7240 | -6/Extension | Rescued a captive Derelict 7241 | -6/Extension | Rescued a captive Derelict 7401 | -6/Extension | Rescued a captive Derelict 7439 | -6/Extension | Rescued a captive Derelict 7439 | -6/Extension | Rescued a captive Derelict 7477 | -6/Extension | Energy Cycler disabled 7479 | -6/Extension | Rescued a captive Derelict 7482 | -6/Extension | Rescued A7 7547 | -6/Extension | Lost 4 allies 7741 | -6/Extension | Build established: Scavenger-Tank 7754 | -6/Extension | Spotted B-75 Beast 7765 | -6/Extension | Destroyed B-75 Beast 7772 | -6/Extension | Spotted B-75 Beast 7778 | -6/Extension | Discovered new exit (range 15) 7810 | -6/Extension | Destroyed B-75 Beast 7817 | -6/Extension | Lost 3 allies 7824 | -6/Extension | Disrupted transfer network 7833 | -6/Extension | Lost 4 parts (2n2w) 7895 | -6/Extension | Repaired Imp. Light Armor Plating 8085 | -6/Extension | Lost 3 allies 8194 | -6/Extension | Build established: Pyromaniac-Tank 8375 | -6/Extension | Discovered new exit (range 10) 8376 | -6/Extension | Discovered new exit (range 6) 8386 | -6/Extension | Identified exit to Cetus 8394 | -6/Extension | Identified exit to Factory 8405 | -6/Extension | Extracted ID and sensor layout for unrecognized location from A7's data core 8436 | -6/Extension | Lost 3 allies 8469 | -6/Extension | Entered Cetus 8469 | -6/Cetus | Accompanied by 5 allies 8489 | -6/Cetus | Spotted Cetus Guard 8489 | -6/Cetus | Spotted Cetus Guard 8492 | -6/Cetus | Spotted Cetus Guard 8493 | -6/Cetus | Spotted Cetus Guard 8503 | -6/Cetus | Destroyed Cetus Guard 8517 | -6/Cetus | Destroyed Cetus Guard 8544 | -6/Cetus | Destroyed Cetus Guard 8574 | -6/Cetus | Lost 4 allies 8651 | -6/Cetus | Discovered new exit (range 16) 8667 | -6/Cetus | Identified exit to Archives 8680 | -6/Cetus | Entered Archives 8680 | -6/Archives | Accompanied by 1 ally 8800 | -6/Archives | Lost 3 parts (1n2w) 8834 | -6/Archives | Discovered new exit (range 15) 8854 | -6/Archives | Build established: Scavenger-Tank 8889 | -6/Archives | Discovered exit to Factory (range 16) 8929 | -6/Archives | Discovered new exit (range 13) 9034 | -6/Archives | Identified exit to Hub_04(d) 9038 | -6/Archives | Entered Hub_04(d) 9091 | -6/Hub_04(d) | Garrison activated, responded to threat 9223 | -6/Hub_04(d) | Discovered exit to Factory (range 8) 9269 | -6/Hub_04(d) | Network Hub disabled 9295 | -6/Hub_04(d) | Incoming investigation squad redirected 9302 | -6/Hub_04(d) | Entered Factory 9302 | -5/Factory | Evolved 2 slots: Power x1, Utility x1 9517 | -5/Factory | Identified exit to Upper Caves 9620 | -5/Factory | Repaired Myomer Leg 10563 | -5/Factory | System corruption reached 10% 10876 | -5/Factory | Destroyed 7 combat bots 10928 | -5/Factory | Cargo convoy interrupted 11046 | -5/Factory | Lost 10 parts (1p3n3u3w) 11244 | -5/Factory | Entered Upper Caves 11273 | -5/Upper Caves | Build established: Mutant 11671 | -5/Upper Caves | Learned Factory emergency access door positions 11770 | -5/Upper Caves | Discovered new exit (range 9) 11771 | -5/Upper Caves | Encountered a Warlord checkpoint 11810 | -5/Upper Caves | Identified exit to Upper Caves 11823 | -5/Upper Caves | Entered another Upper Caves area 11823 | -5/Upper Caves | Discovered new exit (range 12) 12036 | -5/Upper Caves | Build established: Derelict-Tank 12081 | -5/Upper Caves | Lost 4 parts (3n1w) 12116 | -5/Upper Caves | Encountered a Warlord checkpoint 12131 | -5/Upper Caves | Learned 8 Factory zone layouts 12345 | -5/Upper Caves | Build established: Derelict-Mutant 12512 | -5/Upper Caves | Acquired the password to a Derelict Tinkerer's latest research 12527 | -5/Upper Caves | Found Prototype Special Weapon 12628 | -5/Upper Caves | Discovered new exit (range 16) 12652 | -5/Upper Caves | Identified exit to Warlord 12654 | -5/Upper Caves | Entered Warlord 12714 | -5/Warlord | System corruption cleaned by Quarantine Array 12828 | -5/Warlord | Build established: Derelict-Tank 12857 | -5/Warlord | Found Prototype Device 12857 | -5/Warlord | Identified Minesniffer Drone Bay 12964 | -5/Warlord | Met Warlord 12989 | -5/Warlord | Warlord's base attacked by MAIN.C 13339 | -5/Warlord | Warlord forces counterattacked 13438 | -5/Warlord | Spotted Executioner 13485 | -5/Warlord | Spotted Executioner 13486 | -5/Warlord | Lost 5 allies 13499 | -5/Warlord | Found Prototype Processor 13499 | -5/Warlord | Identified Exp. Targeting Computer 13502 | -5/Warlord | P-80 Master assimilated allied 32-OHN(g) 13509 | -5/Warlord | Spotted Striker 13514 | -5/Warlord | Spotted Executioner 13530 | -5/Warlord | Core integrity fell below 50% 13552 | -5/Warlord | Discovered new exit (range 12) 13561 | -5/Warlord | Core integrity fell below 20% 13563 | -5/Warlord | Identified exit to Proximity Caves 13564 | -5/Warlord | Entered Proximity Caves 13566 | -4/Proximity Caves | Attracted the attention of an 0b10 checkpoint 13569 | -4/Proximity Caves | Attached Powered Cannon, gained temporary slot: Power 13595 | -4/Proximity Caves | Lost 13 allies 13597 | -4/Proximity Caves | Identified exit to Factory 13609 | -4/Proximity Caves | Lost 11 parts (2p3n2u4w) 13626 | -4/Proximity Caves | Found Alien Artifact 13759 | -4/Proximity Caves | Spotter reported a threat 13837 | -4/Proximity Caves | Build established: Scavenger-Mutant 13879 | -4/Proximity Caves | Spotter reported a threat 13943 | -4/Proximity Caves | Spotter reported a threat 13952 | -4/Proximity Caves | Destroyed by G-73 Enforcer with Heavy Laser Last Messages --------------- approaching Complex 0b10. 13762_ Acquired 3 matter. 13861_ System corrupted: Component data lost. 13879_ ALERT: Unidentified potential threat approaching Complex 0b10. 13884_ EJUTMAT9RMI2#M 13894_ Searching scrap... 13894_ Found Unknown Device. 13894_ Found Phasing Sabre. 13894_ Found Mass Driver. 13894_ Found 62 Matter. 13895_ Acquired 1 matter. 13896_ Acquired Mass Driver. 13898_ Acquired Phasing Sabre. 13902_ Acquired Unknown Device. 13902_ Identified Imp. Component Analysis Suite. 13903_ Acquired Lyr. Light Armor Plating. 13906_ Acquired 20 matter. 13943_ ALERT: Unidentified potential threat approaching Complex 0b10. Map ----- +----------------------------------------------------+ | ### #??????????????????????????????????? | | #??????????????????????????????????? | | ##??????????????????????????????????? | | #???????????????????????????????????? | | ##??????????????????????????????????? | | #??????????????????????????????????? | | ## ##?????????????????????????????????? | | ###### #?????????????????????????????????? | | # #???#"# ##?????????????????????????????????? | | ##?# #??# ####??????????????????????????????????? | | ???# ### #??????????????????????????????????????? | | ???# ###???????????????????????????????????????? | | ???## #?????????????????????????????????????????? | | #### ##????????????????????????????????????????? | | #????????????????????????????????????????? | | ###??????????????????????????????????????? | | ## ##?????????????????????????????????????? | | ?## #?????????????????????????????????????? | | ??## #?????????????????????????????????????? | | ???#### ##?????????????????????????????????????? | | ??????# ##??????????????????????????????????????? | | ??????# ##???????????????????????????????????????? | | ??????#"###########??????????????????????????????? | | ??????# # ##?????????????????????????????? | | #######"# #??# ########??????????????????????? | | ! %##??# ## @#??????????????????????? | | #########""#### ##??????????????????????? | | ????????###""## #???????????????????????? | | ??????????# ##???????????????????????? | | ?????????# g ##????????????????????????? | | ???????# g ##?????????????????????????? | | ???????# ## ##??????????????????????????? | | ?????? #?## ###???????????????????????????? | | ???? ???## ##?????????????????????????????? | | ?? ????#####??????????????????????????????? | | ?## #???????????????????????????????????????? | | ??## #????????????????????????????????????????? | | ???# ?????????????????????????????????????????? | | ??? ###?????????????????????????????????????????? | | ?? ????????????????????????????????????????????? | | ?????????????????????????????????????????????????? | | ?????????????????????????????????????????????????? | | ?????????????????????????????????????????????????? | | ?????????????????????????????????????????????????? | | ?????????????????????????????????????????????????? | | ?????????????????????????????????????????????????? | | ?????????????????????????????????????????????????? | | ?????????????????????????????????????????????????? | | ?????????????????????????????????????????????????? | | ?????????????????????????????????????????????????? | +----------------------------------------------------+ Best States ------------- Heat Dissipation 98 Energy Generation 32 Energy Capacity 725 Matter Stores 300 Matter Capacity 300 Sight Range 16 Robot Scan Range 15 Terrain Scan Density 10 Armor Coverage 675 Resistance: EM 15 Core Shielding 20 Weapon Cycling 15 Evasion (%) 65 Targeting Accuracy 12 Target Analysis 6 Recoil Reduction 2 Energy Filtering 50 Salvage Targeting 4 Offensive Hacking 14 Authchip Count 1 Item Schematics ----------------- Combat Drone Bay | -7/Data Miner | Free Lgt. Regenerative Plating | -7/Data Miner | Free Cld. Cesium-ion Thruster | -7/Data Miner | Free Gravity Neutralizer | -7/Data Miner | Free Imp. Heavy Laser | -7/Data Miner | Free Antigrav System | -7/Data Miner | Free Imp. Kinecellerator | -7/Data Miner | Free Hvy. Shock Bomb Launcher | -7/Data Miner | Free Robot Schematics ------------------ E-15 Imp | -7/Data Miner | Free L-41 Fighter | -7/Data Miner | Free B-48 Gladiator | -7/Data Miner | Free M-22 Extractor | -7/Data Miner | Free R-10 Processor | -7/Data Miner | Free Fabricated ------------ Nothing Repaired ---------- Imp. Sensor Array | 27% | -6/Factory | Broken Imp. Light Armor Plating | 22% | -6/Extension Myomer Leg | 35% | -5/Factory Studied --------- Carbon-fiber Leg | -8/Materials | Hacked Gatling Laser | -7/Factory | Hacked Imp. Titanium Leg | -7/Factory | Hacked Missile Launcher | -6/Factory | Hacked Alien Tech Used ----------------- None Achievements -------------- Deductive Reasoning Ew, Corruption Into The Breach Jackpot Plot Armor Throw Away The Key Well Done Challenges ------------ None Game ------ Seed RemoteCarbideSaw Manual? 0 Play Time 02:12:07 Cumulative 396.7 hours Start 2025.10.23 @ 14:10:09 End 2025.10.25 @ 22:54:06 Sessions 13 Manual Loads 0 Difficulty Rogue Special Mode None Game No. 248 Rogue 248 Adventurer 0 Explorer 0 Win Type - Total 9 Types 8/0/1/0/0/0/0/0/0/0 Lore% 79 Gallery% 75 Achievement% 44 Wizard Run 0 Options --------- Layout 1 ASCII 0 Keyboard 1 Movement Numpad Keybinds 0 Fullscreen 2 Font 24/Smallcaps Map View 50x35 Zoom Use 0% Tactical HUD 1 Map Filters NONE Filters NONE Steam 1 RUN: e23e1cad-a3ac-495e-abde-e0aa7d00b838